[Event "Titled Tuesday Blitz December 13 Early 2022"]
[White "Sovetbekova, Nurai"]
[Black "Redzisz, Michal"]
[WhiteFideId "13801910"]
[BlackFideId "21816107"]
[WhiteElo "1925"]
[BlackElo "2136"]
[Result "1/2-1/2"]
[Round "10"]
[TimeControl "180+1"]
[Date "2022.12.14"]
[WhiteClock "0:00:25"]
[BlackClock "0:00:06"]

1. d4 {[%clk 0:03:00]}  Nf6 {[%clk 0:02:48]} 2. c4 {[%clk 0:03:00]}  c5 {[%clk 0:02:47]} 3. d5 {[%clk 0:03:00]}  e6 {[%clk 0:02:48]} 4. Nc3 {[%clk 0:03:00]}  exd5 {[%clk 0:02:49]} 5. cxd5 {[%clk 0:03:00]}  d6 {[%clk 0:02:49]} 6. e4 {[%clk 0:03:01]}  g6 {[%clk 0:02:50]} 7. h3 {[%clk 0:02:57]}  Bg7 {[%clk 0:02:49]} 8. Nf3 {[%clk 0:02:57]}  O-O {[%clk 0:02:49]} 9. Be3 {[%clk 0:02:56]}  Re8 {[%clk 0:02:49]} 10. Bd3 {[%clk 0:02:54]}  c4 {[%clk 0:02:14]} 11. Bxc4 {[%clk 0:02:46]}  Nxe4 {[%clk 0:02:15]} 12. Nxe4 {[%clk 0:02:37]}  Rxe4 {[%clk 0:02:15]} 13. Bd3 {[%clk 0:02:33]}  Re8 {[%clk 0:01:54]} 14. O-O {[%clk 0:02:30]}  Nd7 {[%clk 0:01:43]} 15. Qb3 {[%clk 0:02:26]}  b6 {[%clk 0:01:14]} 16. Bb5 {[%clk 0:02:20]}  Re7 {[%clk 0:00:59]} 17. Bc6 {[%clk 0:02:04]}  Rb8 {[%clk 0:00:48]} 18. Bg5 {[%clk 0:02:04]}  Bf6 {[%clk 0:00:45]} 19. Bxf6 {[%clk 0:01:51]}  Nxf6 {[%clk 0:00:46]} 20. Rac1 {[%clk 0:01:51]}  Ne4 {[%clk 0:00:40]} 21. Rfe1 {[%clk 0:01:45]}  Bf5 {[%clk 0:00:26]} 22. Qe3 {[%clk 0:01:30]}  Qf8 {[%clk 0:00:15]} 23. Nd4 {[%clk 0:01:24]}  Bc8 {[%clk 0:00:09]} 24. Qf4 {[%clk 0:01:20]}  f5 {[%clk 0:00:08]} 25. Bb5 {[%clk 0:01:14]}  Bd7 {[%clk 0:00:07]} 26. Bd3 {[%clk 0:01:08]}  Rbe8 {[%clk 0:00:06]} 27. Nc6 {[%clk 0:01:06]}  Bxc6 {[%clk 0:00:06]} 28. dxc6 {[%clk 0:01:06]}  g5 {[%clk 0:00:05]} 29. Qf3 {[%clk 0:01:00]}  Qf7 {[%clk 0:00:02]} 30. Bxe4 {[%clk 0:00:56]}  fxe4 {[%clk 0:00:02]} 31. Qe3 {[%clk 0:00:55]}  h6 {[%clk 0:00:02]} 32. Red1 {[%clk 0:00:53]}  d5 {[%clk 0:00:02]} 33. Qd4 {[%clk 0:00:51]}  Rd8 {[%clk 0:00:03]} 34. Qc3 {[%clk 0:00:48]}  Rc7 {[%clk 0:00:03]} 35. Qe5 {[%clk 0:00:48]}  Qe7 {[%clk 0:00:03]} 36. Qg3 {[%clk 0:00:47]}  Qd6 {[%clk 0:00:02]} 37. Qe3 {[%clk 0:00:45]}  Rxc6 {[%clk 0:00:03]} 38. Rc3 {[%clk 0:00:42]}  Rxc3 {[%clk 0:00:03]} 39. bxc3 {[%clk 0:00:42]}  Qe5 {[%clk 0:00:03]} 40. Qd2 {[%clk 0:00:37]}  Rd6 {[%clk 0:00:04]} 41. Qb2 {[%clk 0:00:36]}  Kg7 {[%clk 0:00:04]} 42. Qa3 {[%clk 0:00:36]}  Rf6 {[%clk 0:00:04]} 43. Qxa7+ {[%clk 0:00:36]}  Rf7 {[%clk 0:00:04]} 44. Qxb6 {[%clk 0:00:36]}  Qxc3 {[%clk 0:00:05]} 45. Rxd5 {[%clk 0:00:34]}  Qc1+ {[%clk 0:00:04]} 46. Kh2 {[%clk 0:00:35]}  Qf4+ {[%clk 0:00:05]} 47. Kg1 {[%clk 0:00:33]}  Qc1+ {[%clk 0:00:05]} 48. Kh2 {[%clk 0:00:27]}  Qf4+ {[%clk 0:00:05]} 49. Kg1 {[%clk 0:00:25]}  Qc1+ {[%clk 0:00:06]} 1/2-1/2


[Site "https://www.chess.com"]

[Event "Titled Tuesday Blitz December 13 Early 2022"]
[White "Timofeev, Artyom"]
[Black "Kazakouski, Valery"]
[WhiteFideId "4140419"]
[BlackFideId "13507443"]
[WhiteElo "2586"]
[BlackElo "2516"]
[Result "1-0"]
[Round "10"]
[TimeControl "180+1"]
[Date "2022.12.13"]
[WhiteClock "0:00:19"]
[BlackClock "0:00:03"]

1. d4 {[%clk 0:03:00]}  Nf6 {[%clk 0:02:59]} 2. Bf4 {[%clk 0:03:00]}  e6 {[%clk 0:03:00]} 3. Nc3 {[%clk 0:02:59]}  d5 {[%clk 0:02:57]} 4. e3 {[%clk 0:02:59]}  Bd6 {[%clk 0:02:56]} 5. Qf3 {[%clk 0:02:57]}  a6 {[%clk 0:02:50]} 6. g4 {[%clk 0:02:56]}  b5 {[%clk 0:02:47]} 7. g5 {[%clk 0:02:56]}  Nfd7 {[%clk 0:02:48]} 8. Bd3 {[%clk 0:02:44]}  Bb7 {[%clk 0:02:47]} 9. Qg3 {[%clk 0:02:37]}  Bxf4 {[%clk 0:02:42]} 10. exf4 {[%clk 0:02:36]}  c5 {[%clk 0:02:39]} 11. Nf3 {[%clk 0:02:36]}  Nc6 {[%clk 0:02:30]} 12. O-O {[%clk 0:02:35]}  cxd4 {[%clk 0:02:21]} 13. Ne2 {[%clk 0:02:35]}  Qb6 {[%clk 0:02:21]} 14. a3 {[%clk 0:02:27]}  a5 {[%clk 0:02:20]} 15. Rfd1 {[%clk 0:02:22]}  g6 {[%clk 0:02:10]} 16. Qh4 {[%clk 0:02:12]}  Ke7 {[%clk 0:01:59]} 17. c3 {[%clk 0:01:55]}  dxc3 {[%clk 0:01:55]} 18. Nxc3 {[%clk 0:01:55]}  b4 {[%clk 0:01:55]} 19. Nb5 {[%clk 0:01:52]}  Nc5 {[%clk 0:01:50]} 20. Bf1 {[%clk 0:01:50]}  Ba6 {[%clk 0:01:48]} 21. a4 {[%clk 0:01:50]}  Nxa4 {[%clk 0:01:46]} 22. Rxa4 {[%clk 0:01:37]}  Bxb5 {[%clk 0:01:46]} 23. Raa1 {[%clk 0:01:35]}  Bxf1 {[%clk 0:01:46]} 24. Rxf1 {[%clk 0:01:35]}  Nd4 {[%clk 0:01:30]} 25. Ne5 {[%clk 0:01:35]}  Qc7 {[%clk 0:01:31]} 26. Kh1 {[%clk 0:01:26]}  Qb7 {[%clk 0:01:12]} 27. Rac1 {[%clk 0:01:21]}  Rac8 {[%clk 0:01:09]} 28. Qh3 {[%clk 0:01:16]}  Nc6 {[%clk 0:00:57]} 29. Ng4 {[%clk 0:01:12]}  Nd4 {[%clk 0:00:45]} 30. Qe3 {[%clk 0:01:12]}  Nf5 {[%clk 0:00:43]} 31. Qe5 {[%clk 0:01:12]}  Rhf8 {[%clk 0:00:18]} 32. Kg1 {[%clk 0:01:08]}  Nh4 {[%clk 0:00:15]} 33. Qf6+ {[%clk 0:01:06]}  Ke8 {[%clk 0:00:15]} 34. Ne5 {[%clk 0:00:56]}  d4 {[%clk 0:00:11]} 35. f3 {[%clk 0:00:56]}  d3 {[%clk 0:00:11]} 36. Kf2 {[%clk 0:00:51]}  d2 {[%clk 0:00:09]} 37. Rxc8+ {[%clk 0:00:44]}  Qxc8 {[%clk 0:00:10]} 38. Rd1 {[%clk 0:00:44]}  Qc5+ {[%clk 0:00:09]} 39. Ke2 {[%clk 0:00:44]}  Qb5+ {[%clk 0:00:09]} 40. Kxd2 {[%clk 0:00:43]}  Nf5 {[%clk 0:00:07]} 41. Kc1 {[%clk 0:00:37]}  Qc5+ {[%clk 0:00:07]} 42. Kb1 {[%clk 0:00:37]}  Nd6 {[%clk 0:00:04]} 43. Rc1 {[%clk 0:00:22]}  Qb5 {[%clk 0:00:04]} 44. Nc6 {[%clk 0:00:20]}  Nf5 {[%clk 0:00:03]} 45. Qd8# {[%clk 0:00:19]} 1-0


[Site "https://www.chess.com"]

[Event "Titled Tuesday Blitz December 13 Early 2022"]
[White "Todorovic, Bojan"]
[Black "Fernandez De La Vara, Arnaldo"]
[WhiteFideId "917087"]
[BlackFideId "3518388"]
[WhiteElo "2266"]
[BlackElo "2387"]
[Result "0-1"]
[Round "10"]
[TimeControl "180+1"]
[Date "2022.12.14"]
[WhiteClock "0:00:51"]
[BlackClock "0:01:27"]

1. d4 {[%clk 0:02:58]}  c5 {[%clk 0:03:00]} 2. d5 {[%clk 0:02:53]}  Nf6 {[%clk 0:03:00]} 3. c4 {[%clk 0:02:50]}  b5 {[%clk 0:03:01]} 4. cxb5 {[%clk 0:02:49]}  a6 {[%clk 0:03:01]} 5. e3 {[%clk 0:02:49]}  g6 {[%clk 0:03:01]} 6. Nc3 {[%clk 0:02:46]}  Bg7 {[%clk 0:03:01]} 7. Nf3 {[%clk 0:02:46]}  O-O {[%clk 0:03:01]} 8. a4 {[%clk 0:02:42]}  e6 {[%clk 0:03:02]} 9. Ra3 {[%clk 0:02:29]}  Bb7 {[%clk 0:02:50]} 10. Bc4 {[%clk 0:02:28]}  axb5 {[%clk 0:02:45]} 11. axb5 {[%clk 0:02:26]}  Rxa3 {[%clk 0:02:46]} 12. bxa3 {[%clk 0:02:26]}  Qa5 {[%clk 0:02:47]} 13. Bd2 {[%clk 0:02:12]}  Qxa3 {[%clk 0:02:46]} 14. dxe6 {[%clk 0:01:49]}  fxe6 {[%clk 0:02:41]} 15. O-O {[%clk 0:01:49]}  Ng4 {[%clk 0:02:21]} 16. Ng5 {[%clk 0:01:35]}  Nxh2 {[%clk 0:01:31]} 17. Nxe6 {[%clk 0:01:34]}  dxe6 {[%clk 0:01:29]} 18. Bxe6+ {[%clk 0:01:22]}  Kh8 {[%clk 0:01:29]} 19. Nb1 {[%clk 0:01:04]}  Qb2 {[%clk 0:01:28]} 20. Bh3 {[%clk 0:00:51]}  Nxf1 {[%clk 0:01:27]} 0-1


[Site "https://www.chess.com"]

[Event "Titled Tuesday Blitz December 13 Early 2022"]
[White "Urazayev, Arystanbek"]
[Black "Araujo Sanchez, Josue"]
[WhiteFideId "13709810"]
[BlackFideId "6416896"]
[WhiteElo "2463"]
[BlackElo "2370"]
[Result "1-0"]
[Round "10"]
[TimeControl "180+1"]
[Date "2022.12.13"]
[WhiteClock "0:02:21"]
[BlackClock "0:01:38"]

1. e4 {[%clk 0:02:59]}  c6 {[%clk 0:02:59]} 2. d4 {[%clk 0:02:59]}  d5 {[%clk 0:03:00]} 3. exd5 {[%clk 0:03:00]}  cxd5 {[%clk 0:03:01]} 4. c4 {[%clk 0:03:00]}  Nc6 {[%clk 0:03:02]} 5. Nc3 {[%clk 0:02:58]}  Nf6 {[%clk 0:03:02]} 6. Nf3 {[%clk 0:02:59]}  e6 {[%clk 0:03:02]} 7. c5 {[%clk 0:02:59]}  Be7 {[%clk 0:02:58]} 8. Bb5 {[%clk 0:02:59]}  O-O {[%clk 0:02:59]} 9. O-O {[%clk 0:02:59]}  Bd7 {[%clk 0:02:56]} 10. Bf4 {[%clk 0:02:59]}  Ne4 {[%clk 0:02:54]} 11. Re1 {[%clk 0:02:57]}  b6 {[%clk 0:02:49]} 12. Bxc6 {[%clk 0:02:56]}  Bxc6 {[%clk 0:02:46]} 13. Ne5 {[%clk 0:02:56]}  Bb7 {[%clk 0:02:39]} 14. c6 {[%clk 0:02:55]}  Nxc3 {[%clk 0:02:36]} 15. bxc3 {[%clk 0:02:56]}  Bc8 {[%clk 0:02:35]} 16. Qa4 {[%clk 0:02:42]}  f6 {[%clk 0:02:23]} 17. Nd7 {[%clk 0:02:38]}  Kf7 {[%clk 0:01:59]} 18. Nxf8 {[%clk 0:02:25]}  Bxf8 {[%clk 0:02:00]} 19. c4 {[%clk 0:02:24]}  g5 {[%clk 0:01:53]} 20. Bg3 {[%clk 0:02:23]}  h5 {[%clk 0:01:52]} 21. h4 {[%clk 0:02:22]}  gxh4 {[%clk 0:01:44]} 22. Bxh4 {[%clk 0:02:22]}  Be7 {[%clk 0:01:41]} 23. Qc2 {[%clk 0:02:21]}  Kg7 {[%clk 0:01:38]} 24. Re3 {[%clk 0:02:21]} 1-0


[Site "https://www.chess.com"]

[Event "Titled Tuesday Blitz December 13 Early 2022"]
[White "Vianello, Enrico"]
[Black "Thiel, Thomas"]
[WhiteFideId "810738"]
[BlackFideId "4615964"]
[WhiteElo "2117"]
[BlackElo "2197"]
[Result "1/2-1/2"]
[Round "10"]
[TimeControl "180+1"]
[Date "2022.12.14"]
[WhiteClock "0:00:18"]
[BlackClock "0:01:34"]

1. d4 {[%clk 0:02:58]}  Nf6 {[%clk 0:02:57]} 2. c4 {[%clk 0:02:57]}  g6 {[%clk 0:02:57]} 3. Nc3 {[%clk 0:02:56]}  d5 {[%clk 0:02:57]} 4. e3 {[%clk 0:02:46]}  Bg7 {[%clk 0:02:55]} 5. Nf3 {[%clk 0:02:47]}  O-O {[%clk 0:02:54]} 6. b3 {[%clk 0:02:47]}  c5 {[%clk 0:02:51]} 7. dxc5 {[%clk 0:02:45]}  Ne4 {[%clk 0:02:51]} 8. Nxe4 {[%clk 0:02:40]}  Bxa1 {[%clk 0:02:46]} 9. cxd5 {[%clk 0:02:40]}  Bf5 {[%clk 0:02:41]} 10. Ng3 {[%clk 0:02:38]}  Qa5+ {[%clk 0:02:35]} 11. Bd2 {[%clk 0:02:37]}  Qxa2 {[%clk 0:02:35]} 12. Bc4 {[%clk 0:02:31]}  Bc2 {[%clk 0:02:31]} 13. Qc1 {[%clk 0:02:27]}  Bg7 {[%clk 0:02:25]} 14. Nd4 {[%clk 0:02:02]}  Bxd4 {[%clk 0:02:16]} 15. exd4 {[%clk 0:02:02]}  Bxb3 {[%clk 0:02:15]} 16. Bd3 {[%clk 0:01:48]}  Bxd5 {[%clk 0:02:13]} 17. O-O {[%clk 0:01:48]}  Nc6 {[%clk 0:02:11]} 18. Bc3 {[%clk 0:01:48]}  Bc4 {[%clk 0:01:56]} 19. Bb1 {[%clk 0:01:40]}  Qa6 {[%clk 0:01:46]} 20. Qh6 {[%clk 0:01:36]}  f6 {[%clk 0:01:43]} 21. Bxg6 {[%clk 0:01:33]}  hxg6 {[%clk 0:01:38]} 22. Qxg6+ {[%clk 0:01:34]}  Kh8 {[%clk 0:01:38]} 23. Qh6+ {[%clk 0:01:34]}  Kg8 {[%clk 0:01:38]} 24. Qg6+ {[%clk 0:00:59]}  Kh8 {[%clk 0:01:36]} 25. Qh6+ {[%clk 0:00:17]}  Kg8 {[%clk 0:01:34]} 26. Qg6+ {[%clk 0:00:18]} 1/2-1/2


[Site "https://www.chess.com"]

[Event "Titled Tuesday Blitz December 13 Early 2022"]
[White "Vifleemskaia, Svetlana"]
[Black "Torres Dominguez, David"]
[WhiteFideId "4129490"]
[BlackFideId "2220857"]
[WhiteElo "1930"]
[BlackElo "2037"]
[Result "0-1"]
[Round "10"]
[TimeControl "180+1"]
[Date "2022.12.14"]
[WhiteClock "0:00:25"]
[BlackClock "0:00:21"]

1. d4 {[%clk 0:02:43]}  e5 {[%clk 0:02:58]} 2. dxe5 {[%clk 0:02:42]}  d6 {[%clk 0:02:59]} 3. exd6 {[%clk 0:02:42]}  Bxd6 {[%clk 0:02:59]} 4. Nf3 {[%clk 0:02:41]}  Bg4 {[%clk 0:03:00]} 5. h3 {[%clk 0:02:40]}  Bh5 {[%clk 0:03:00]} 6. g4 {[%clk 0:02:40]}  Bg6 {[%clk 0:03:00]} 7. Bg2 {[%clk 0:02:41]}  Nc6 {[%clk 0:02:59]} 8. O-O {[%clk 0:02:40]}  Qe7 {[%clk 0:03:00]} 9. Bg5 {[%clk 0:02:36]}  f6 {[%clk 0:02:59]} 10. Be3 {[%clk 0:02:36]}  O-O-O {[%clk 0:02:59]} 11. Qc1 {[%clk 0:02:36]}  h5 {[%clk 0:02:53]} 12. g5 {[%clk 0:02:33]}  fxg5 {[%clk 0:02:39]} 13. Bxg5 {[%clk 0:02:31]}  Nf6 {[%clk 0:02:39]} 14. e3 {[%clk 0:02:25]}  Be4 {[%clk 0:01:53]} 15. Nbd2 {[%clk 0:02:16]}  Bf5 {[%clk 0:01:44]} 16. Nd4 {[%clk 0:02:08]}  Nxd4 {[%clk 0:01:41]} 17. exd4 {[%clk 0:02:09]}  Qd7 {[%clk 0:01:34]} 18. Nc4 {[%clk 0:02:06]}  Bxh3 {[%clk 0:01:31]} 19. Nxd6+ {[%clk 0:02:05]}  cxd6 {[%clk 0:01:31]} 20. Qf4 {[%clk 0:01:56]}  Bxg2 {[%clk 0:01:28]} 21. Kxg2 {[%clk 0:01:57]}  h4 {[%clk 0:01:24]} 22. c4 {[%clk 0:01:49]}  h3+ {[%clk 0:01:17]} 23. Kh1 {[%clk 0:01:44]}  Rdf8 {[%clk 0:01:15]} 24. f3 {[%clk 0:01:37]}  Nh5 {[%clk 0:01:08]} 25. Qh2 {[%clk 0:01:31]}  Qf5 {[%clk 0:01:04]} 26. Be3 {[%clk 0:01:22]}  g5 {[%clk 0:00:56]} 27. Qxd6 {[%clk 0:01:19]}  Rd8 {[%clk 0:00:34]} 28. Qh2 {[%clk 0:01:13]}  Rhe8 {[%clk 0:00:34]} 29. Rae1 {[%clk 0:01:02]}  g4 {[%clk 0:00:24]} 30. fxg4 {[%clk 0:00:48]}  Qe4+ {[%clk 0:00:24]} 31. Kg1 {[%clk 0:00:47]}  Qxg4+ {[%clk 0:00:24]} 32. Kh1 {[%clk 0:00:29]}  Qe4+ {[%clk 0:00:23]} 33. Kg1 {[%clk 0:00:25]}  Rg8+ {[%clk 0:00:23]} 34. Kf2 {[%clk 0:00:25]}  Rg2+ {[%clk 0:00:21]} 0-1


[Site "https://www.chess.com"]

[Event "Titled Tuesday Blitz December 13 Early 2022"]
[White "Volkov, Maksim"]
[Black "Khandelwal, Ankush"]
[WhiteFideId "54123070"]
[BlackFideId "413470"]
[WhiteElo "2257"]
[BlackElo "2271"]
[Result "1-0"]
[Round "10"]
[TimeControl "180+1"]
[Date "2022.12.14"]
[WhiteClock "0:00:57"]
[BlackClock "0:00:42"]

1. Nf3 {[%clk 0:03:00]}  Nf6 {[%clk 0:02:59]} 2. c4 {[%clk 0:03:00]}  g6 {[%clk 0:02:59]} 3. g3 {[%clk 0:03:00]}  Bg7 {[%clk 0:02:59]} 4. Bg2 {[%clk 0:03:00]}  O-O {[%clk 0:03:00]} 5. O-O {[%clk 0:03:01]}  d6 {[%clk 0:03:00]} 6. d4 {[%clk 0:03:01]}  Nc6 {[%clk 0:02:59]} 7. Nc3 {[%clk 0:03:01]}  e5 {[%clk 0:02:59]} 8. dxe5 {[%clk 0:02:59]}  dxe5 {[%clk 0:03:00]} 9. Bg5 {[%clk 0:02:48]}  Be6 {[%clk 0:02:57]} 10. Qc1 {[%clk 0:02:44]}  Bxc4 {[%clk 0:02:47]} 11. Rd1 {[%clk 0:02:44]}  Qe7 {[%clk 0:02:46]} 12. b3 {[%clk 0:02:41]}  Be6 {[%clk 0:02:46]} 13. Ne4 {[%clk 0:02:42]}  Rfd8 {[%clk 0:02:41]} 14. Rxd8+ {[%clk 0:02:09]}  Rxd8 {[%clk 0:02:40]} 15. Qe3 {[%clk 0:02:10]}  Bd5 {[%clk 0:02:09]} 16. Nfd2 {[%clk 0:01:59]}  Nd4 {[%clk 0:02:00]} 17. Rc1 {[%clk 0:01:48]}  Nf5 {[%clk 0:01:38]} 18. Qxa7 {[%clk 0:01:42]}  h6 {[%clk 0:01:36]} 19. Bxf6 {[%clk 0:01:40]}  Bxf6 {[%clk 0:01:37]} 20. Rxc7 {[%clk 0:01:33]}  Qxc7 {[%clk 0:01:31]} 21. Nxf6+ {[%clk 0:01:33]}  Kg7 {[%clk 0:01:32]} 22. Nxd5 {[%clk 0:01:34]}  Qc1+ {[%clk 0:01:32]} 23. Nf1 {[%clk 0:01:34]}  Nd4 {[%clk 0:01:27]} 24. Qxb7 {[%clk 0:01:19]}  Nxe2+ {[%clk 0:01:25]} 25. Kh1 {[%clk 0:01:20]}  Rc8 {[%clk 0:01:12]} 26. Qa6 {[%clk 0:01:08]}  Qe1 {[%clk 0:01:05]} 27. Qf6+ {[%clk 0:01:07]}  Kh7 {[%clk 0:00:41]} 28. Qxf7+ {[%clk 0:01:05]}  Kh8 {[%clk 0:00:42]} 29. Qf6+ {[%clk 0:01:05]}  Kh7 {[%clk 0:00:42]} 30. Qf7+ {[%clk 0:01:00]}  Kh8 {[%clk 0:00:42]} 31. Nf6 {[%clk 0:00:58]}  Qxf2 {[%clk 0:00:42]} 32. Qh7# {[%clk 0:00:57]} 1-0


[Site "https://www.chess.com"]

[Event "Titled Tuesday Blitz December 13 Early 2022"]
[White "Yurasova, Daria"]
[Black "Aloma Vidal, Robert"]
[WhiteFideId "34146919"]
[BlackFideId "2260409"]
[WhiteElo "2098"]
[BlackElo "2435"]
[Result "0-1"]
[Round "10"]
[TimeControl "180+1"]
[Date "2022.12.14"]
[WhiteClock "0:01:34"]
[BlackClock "0:01:39"]

1. d4 {[%clk 0:03:00]}  d5 {[%clk 0:02:59]} 2. Nf3 {[%clk 0:02:57]}  Bf5 {[%clk 0:02:56]} 3. Bf4 {[%clk 0:02:55]}  e6 {[%clk 0:02:54]} 4. e3 {[%clk 0:02:55]}  Bd6 {[%clk 0:02:53]} 5. Bg3 {[%clk 0:02:55]}  Nf6 {[%clk 0:02:53]} 6. Nbd2 {[%clk 0:02:55]}  Ne4 {[%clk 0:02:54]} 7. Bd3 {[%clk 0:02:54]}  O-O {[%clk 0:02:48]} 8. O-O {[%clk 0:02:54]}  Nd7 {[%clk 0:02:47]} 9. Qe2 {[%clk 0:02:53]}  Ndf6 {[%clk 0:02:42]} 10. Be5 {[%clk 0:02:44]}  c5 {[%clk 0:02:36]} 11. c3 {[%clk 0:02:36]}  c4 {[%clk 0:02:32]} 12. Bb1 {[%clk 0:02:34]}  b5 {[%clk 0:02:30]} 13. Rd1 {[%clk 0:02:23]}  a5 {[%clk 0:02:27]} 14. Nh4 {[%clk 0:02:16]}  b4 {[%clk 0:02:20]} 15. Nxf5 {[%clk 0:02:16]}  exf5 {[%clk 0:02:20]} 16. Bxe4 {[%clk 0:02:15]}  fxe4 {[%clk 0:02:14]} 17. Bxd6 {[%clk 0:02:11]}  Qxd6 {[%clk 0:02:14]} 18. Nf1 {[%clk 0:02:12]}  a4 {[%clk 0:02:10]} 19. Ng3 {[%clk 0:02:09]}  a3 {[%clk 0:02:06]} 20. cxb4 {[%clk 0:02:03]}  Qxb4 {[%clk 0:02:04]} 21. bxa3 {[%clk 0:02:04]}  Rxa3 {[%clk 0:02:03]} 22. Rab1 {[%clk 0:01:56]}  Qa4 {[%clk 0:02:02]} 23. Rd2 {[%clk 0:01:48]}  g6 {[%clk 0:01:59]} 24. h4 {[%clk 0:01:47]}  Ra8 {[%clk 0:01:54]} 25. Ra1 {[%clk 0:01:37]}  h5 {[%clk 0:01:44]} 26. Rc2 {[%clk 0:01:37]}  Kg7 {[%clk 0:01:41]} 27. Qd2 {[%clk 0:01:37]}  Rd3 {[%clk 0:01:39]} 28. Qe1 {[%clk 0:01:34]}  Qxc2 {[%clk 0:01:39]} 0-1


[Site "https://www.chess.com"]

[Event "Titled Tuesday Blitz December 13 Early 2022"]
[White "Zhigalko, Sergei"]
[Black "Weetik, Vjacheslav"]
[WhiteFideId "13502956"]
[BlackFideId "4153472"]
[WhiteElo "2662"]
[BlackElo "2469"]
[Result "1-0"]
[Round "10"]
[TimeControl "180+1"]
[Date "2022.12.13"]
[WhiteClock "0:01:12"]
[BlackClock "0:00:01"]

1. e4 {[%clk 0:03:00]}  e5 {[%clk 0:02:59]} 2. Nf3 {[%clk 0:03:00]}  Nc6 {[%clk 0:02:59]} 3. Bb5 {[%clk 0:02:59]}  Nge7 {[%clk 0:02:57]} 4. O-O {[%clk 0:02:59]}  g6 {[%clk 0:02:57]} 5. c3 {[%clk 0:02:59]}  Bg7 {[%clk 0:02:57]} 6. d4 {[%clk 0:03:00]}  exd4 {[%clk 0:02:57]} 7. cxd4 {[%clk 0:03:01]}  d5 {[%clk 0:02:58]} 8. exd5 {[%clk 0:03:00]}  Nxd5 {[%clk 0:02:58]} 9. Bg5 {[%clk 0:03:00]}  Qd6 {[%clk 0:02:58]} 10. Re1+ {[%clk 0:02:58]}  Be6 {[%clk 0:02:57]} 11. Nc3 {[%clk 0:02:57]}  O-O {[%clk 0:02:57]} 12. Ne4 {[%clk 0:02:58]}  Qb4 {[%clk 0:02:57]} 13. Bxc6 {[%clk 0:02:58]}  bxc6 {[%clk 0:02:58]} 14. Qc1 {[%clk 0:02:59]}  Rfe8 {[%clk 0:02:48]} 15. a3 {[%clk 0:02:51]}  Qb5 {[%clk 0:02:32]} 16. Nc5 {[%clk 0:02:47]}  Bf5 {[%clk 0:02:18]} 17. b4 {[%clk 0:02:19]}  a5 {[%clk 0:02:08]} 18. bxa5 {[%clk 0:02:14]}  Qxa5 {[%clk 0:02:04]} 19. Bd2 {[%clk 0:02:06]}  Qa7 {[%clk 0:01:47]} 20. Ne5 {[%clk 0:02:02]}  f6 {[%clk 0:01:22]} 21. Nxc6 {[%clk 0:01:59]}  Qb6 {[%clk 0:01:19]} 22. Nb4 {[%clk 0:01:50]}  Nxb4 {[%clk 0:01:05]} 23. Bxb4 {[%clk 0:01:49]}  Qb5 {[%clk 0:01:02]} 24. h3 {[%clk 0:01:44]}  g5 {[%clk 0:00:59]} 25. d5 {[%clk 0:01:33]}  Rad8 {[%clk 0:00:48]} 26. Ne6 {[%clk 0:01:28]}  Rd7 {[%clk 0:00:21]} 27. Nd4 {[%clk 0:01:13]}  Rxe1+ {[%clk 0:00:02]} 28. Qxe1 {[%clk 0:01:14]}  Qxd5 {[%clk 0:00:01]} 29. Qe8+ {[%clk 0:01:12]} 1-0


[Site "https://www.chess.com"]

[Event "Titled Tuesday Blitz December 13 Early 2022"]
[White "Aloma Vidal, Robert"]
[Black "Tomaszewski, Kacper"]
[WhiteFideId "2260409"]
[BlackFideId "1127373"]
[WhiteElo "2435"]
[BlackElo "2211"]
[Result "1/2-1/2"]
[Round "11"]
[TimeControl "180+1"]
[Date "2022.12.14"]
[WhiteClock "0:00:05"]
[BlackClock "0:00:03"]

1. e4 {[%clk 0:03:00]}  e5 {[%clk 0:02:59]} 2. Nf3 {[%clk 0:03:00]}  Nc6 {[%clk 0:02:59]} 3. Bc4 {[%clk 0:03:01]}  Bc5 {[%clk 0:02:57]} 4. b4 {[%clk 0:03:00]}  Be7 {[%clk 0:02:56]} 5. O-O {[%clk 0:02:56]}  d6 {[%clk 0:02:51]} 6. c3 {[%clk 0:02:52]}  Nf6 {[%clk 0:02:51]} 7. Qb3 {[%clk 0:02:38]}  O-O {[%clk 0:02:50]} 8. d3 {[%clk 0:02:38]}  Qe8 {[%clk 0:02:41]} 9. a4 {[%clk 0:02:36]}  Nd8 {[%clk 0:02:37]} 10. Re1 {[%clk 0:02:20]}  Bg4 {[%clk 0:02:07]} 11. Nbd2 {[%clk 0:02:19]}  Ne6 {[%clk 0:02:06]} 12. h3 {[%clk 0:02:18]}  Bh5 {[%clk 0:02:03]} 13. d4 {[%clk 0:02:07]}  Nd7 {[%clk 0:01:55]} 14. Bxe6 {[%clk 0:01:44]}  fxe6 {[%clk 0:01:56]} 15. Qxe6+ {[%clk 0:01:44]}  Kh8 {[%clk 0:01:48]} 16. dxe5 {[%clk 0:01:40]}  Bf7 {[%clk 0:01:44]} 17. Qg4 {[%clk 0:01:39]}  dxe5 {[%clk 0:01:41]} 18. Qg3 {[%clk 0:01:35]}  Bf6 {[%clk 0:01:29]} 19. Nf1 {[%clk 0:01:30]}  Bg6 {[%clk 0:01:16]} 20. b5 {[%clk 0:01:22]}  Nc5 {[%clk 0:01:15]} 21. N1d2 {[%clk 0:01:17]}  Nd3 {[%clk 0:01:14]} 22. Re3 {[%clk 0:01:11]}  Nf4 {[%clk 0:01:14]} 23. Ba3 {[%clk 0:01:00]}  Rf7 {[%clk 0:01:13]} 24. Nf1 {[%clk 0:00:52]}  Rd8 {[%clk 0:01:12]} 25. Rae1 {[%clk 0:00:50]}  Rfd7 {[%clk 0:01:07]} 26. Nh4 {[%clk 0:00:44]}  Bh5 {[%clk 0:01:02]} 27. Nf3 {[%clk 0:00:38]}  Rd1 {[%clk 0:01:01]} 28. Kh2 {[%clk 0:00:36]}  Rxe1 {[%clk 0:00:57]} 29. Rxe1 {[%clk 0:00:35]}  Rd3 {[%clk 0:00:56]} 30. Re3 {[%clk 0:00:35]}  Rxe3 {[%clk 0:00:53]} 31. fxe3 {[%clk 0:00:28]}  Ne6 {[%clk 0:00:46]} 32. c4 {[%clk 0:00:20]}  h6 {[%clk 0:00:40]} 33. Bb2 {[%clk 0:00:19]}  Ng5 {[%clk 0:00:38]} 34. Nxg5 {[%clk 0:00:17]}  hxg5 {[%clk 0:00:35]} 35. Nd2 {[%clk 0:00:18]}  Qe6 {[%clk 0:00:33]} 36. c5 {[%clk 0:00:17]}  Qa2 {[%clk 0:00:31]} 37. Bc3 {[%clk 0:00:15]}  Qc2 {[%clk 0:00:30]} 38. Bb4 {[%clk 0:00:11]}  Qb2 {[%clk 0:00:29]} 39. Ba5 {[%clk 0:00:10]}  b6 {[%clk 0:00:29]} 40. cxb6 {[%clk 0:00:10]}  axb6 {[%clk 0:00:29]} 41. Nc4 {[%clk 0:00:10]}  Qc2 {[%clk 0:00:20]} 42. Nxe5 {[%clk 0:00:08]}  bxa5 {[%clk 0:00:17]} 43. Ng4 {[%clk 0:00:04]}  Bxg4 {[%clk 0:00:14]} 44. Qxg4 {[%clk 0:00:04]}  Be5+ {[%clk 0:00:14]} 45. Kg1 {[%clk 0:00:05]}  Qc1+ {[%clk 0:00:13]} 46. Kf2 {[%clk 0:00:05]}  Qd2+ {[%clk 0:00:13]} 47. Kf1 {[%clk 0:00:05]}  Qd3+ {[%clk 0:00:13]} 48. Kf2 {[%clk 0:00:05]}  Qc2+ {[%clk 0:00:13]} 49. Kf1 {[%clk 0:00:05]}  Qb1+ {[%clk 0:00:13]} 50. Kf2 {[%clk 0:00:06]}  Qb2+ {[%clk 0:00:13]} 51. Kf3 {[%clk 0:00:06]}  Qa2 {[%clk 0:00:07]} 52. Qh5+ {[%clk 0:00:06]}  Kg8 {[%clk 0:00:05]} 53. Qe8+ {[%clk 0:00:07]}  Kh7 {[%clk 0:00:04]} 54. Qxe5 {[%clk 0:00:08]}  Qxa4 {[%clk 0:00:04]} 55. Qxg5 {[%clk 0:00:08]}  Qd1+ {[%clk 0:00:03]} 56. Kg3 {[%clk 0:00:08]}  Qe1+ {[%clk 0:00:03]} 57. Kh2 {[%clk 0:00:08]}  a4 {[%clk 0:00:03]} 58. Qh5+ {[%clk 0:00:08]}  Kg8 {[%clk 0:00:04]} 59. e5 {[%clk 0:00:06]}  Qxe3 {[%clk 0:00:02]} 60. Qe8+ {[%clk 0:00:06]}  Kh7 {[%clk 0:00:02]} 61. Qh5+ {[%clk 0:00:06]}  Kg8 {[%clk 0:00:02]} 62. Qe8+ {[%clk 0:00:06]}  Kh7 {[%clk 0:00:03]} 63. Qh5+ {[%clk 0:00:05]}  Kg8 {[%clk 0:00:03]} 1/2-1/2


[Site "https://www.chess.com"]